bitfinex/quotes_BTCUSD_20220405
["timestamp","ask_amount","ask_price","bid_price","bid_amount"]
[1649124660494,0.53930587,46674.0,46670.0,0.75126326]
[1649124660691,0.53984869,46674.0,46670.0,0.75126326]
[1649124660792,0.53984869,46674.0,46671.0,0.3]
[1649124660894,0.53984869,46674.0,46671.0,0.05]
[1649124661094,0.53984869,46674.0,46672.0,0.322019]
[1649124661194,0.53984869,46674.0,46671.0,0.05]
[1649124661294,0.53984869,46674.0,46672.0,0.322019]
[1649124661394,0.53984869,46674.0,46671.0,0.35]
[1649124661494,0.53984869,46674.0,46672.0,0.322019]
[1649124661735,0.53984869,46674.0,46671.0,0.35]
[1649124661736,0.53930587,46674.0,46671.0,0.35]
[1649124662238,0.53930587,46674.0,46672.0,0.322019]
[1649124662335,0.53930587,46674.0,46671.0,0.35]
[1649124662440,0.53930587,46674.0,46672.0,0.322019]
[1649124662536,0.53930587,46674.0,46671.0,0.35]
[1649124663140,0.53930587,46674.0,46672.0,0.322019]
[1649124663244,0.53930587,46674.0,46671.0,0.35]
[1649124663344,0.53930587,46674.0,46671.0,0.05]
[1649124663440,0.53930587,46674.0,46672.0,0.322019]
[1649124663542,0.53930587,46674.0,46671.0,0.05]
[1649124664042,0.53930587,46674.0,46672.0,0.322019]
[1649124664244,0.53930587,46674.0,46671.0,0.05]
[1649124665145,0.53930587,46674.0,46672.0,0.322019]
[1649124665480,0.53930587,46674.0,46671.0,0.05]
[1649124666032,0.53930587,46674.0,46672.0,0.322019]
[1649124666231,0.53930587,46674.0,46671.0,0.05]
[1649124666332,0.53930587,46674.0,46672.0,0.322019]
[1649124666432,0.53930587,46674.0,46671.0,0.05]
[1649124666584,0.53930587,46674.0,46672.0,0.322019]
[1649124666784,0.53930587,46674.0,46673.0,0.622019]
[1649124666885,0.53930587,46674.0,46673.0,0.672019]
[1649124667433,0.06914778,46674.0,46673.0,0.672019]
[1649124667536,0.06914778,46674.0,46673.0,0.35]
[1649124667988,0.06914778,46674.0,46673.0,0.672019]
[1649124668335,0.06914778,46674.0,46673.0,0.35]
[1649124668436,0.06914778,46674.0,46673.0,0.672019]
[1649124668637,0.06914778,46674.0,46673.0,0.35]
[1649124668738,0.06914778,46674.0,46673.0,0.672019]
[1649124669534,0.06914778,46674.0,46673.0,0.35]
[1649124669632,0.06914778,46674.0,46673.0,0.672019]
[1649124669782,0.06914778,46674.0,46673.0,0.43197497]
[1649124669984,0.06914778,46674.0,46673.0,0.75399397]
[1649124670282,0.06914778,46674.0,46673.0,0.672019]
[1649124670436,0.06914778,46674.0,46673.0,0.68285551]
[1649124671133,0.06914778,46674.0,46673.0,0.73285551]
[1649124671431,0.06914778,46674.0,46673.0,0.77565551]
[1649124671632,0.06914778,46674.0,46673.0,0.764819]
[1649124671734,0.06914778,46674.0,46673.0,0.722019]
[1649124674685,0.06914778,46674.0,46673.0,0.422019]
[1649124675187,0.06914778,46674.0,46673.0,0.372019]
[1649124676930,0.06914778,46674.0,46673.0,0.05]
[1649124677076,0.06914778,46674.0,46673.0,0.372019]
[1649124677177,0.06914778,46674.0,46673.0,0.05]
[1649124677325,0.06914778,46674.0,46673.0,0.372019]
[1649124680782,0.06914778,46674.0,46673.0,0.05]
[1649124680882,0.06914778,46674.0,46673.0,0.372019]
[1649124680984,0.06914778,46674.0,46673.0,0.672019]
[1649124682133,0.0011,46676.0,46674.0,2.0]
[1649124682234,0.0011,46676.0,46675.0,0.322019]
[1649124682335,0.0016428,46676.0,46674.0,2.36337933]
[1649124682434,0.0016428,46676.0,46674.0,0.36337933]
[1649124682535,0.0016428,46676.0,46675.0,0.322019]
[1649124682635,0.0016428,46676.0,46675.0,0.372019]
[1649124682738,0.0016428,46676.0,46675.0,0.05]
[1649124683285,0.0011,46676.0,46675.0,0.05]
[1649124684035,0.0011,46676.0,46675.0,0.372019]
[1649124684136,0.0011,46676.0,46675.0,0.05]
[1649124684283,0.0011,46676.0,46675.0,0.372019]
[1649124684378,0.0011,46676.0,46675.0,0.05]
[1649124684478,0.0011,46676.0,46675.0,0.372019]
[1649124684780,0.0011,46676.0,46675.0,0.05]
[1649124685380,0.0011,46676.0,46675.0,0.372019]
[1649124685480,0.0011,46676.0,46675.0,0.05]
[1649124685582,0.0011,46676.0,46675.0,0.372019]
[1649124685782,0.0011,46676.0,46675.0,0.05]
[1649124685887,0.0011,46676.0,46675.0,0.372019]
[1649124685983,0.0011,46676.0,46675.0,0.05]
[1649124686483,0.0011,46676.0,46675.0,0.372019]
[1649124686684,0.0011,46676.0,46675.0,0.05]
[1649124686783,0.0011,46676.0,46675.0,0.372019]
[1649124686885,0.0011,46676.0,46675.0,0.05]
[1649124686983,0.0011,46676.0,46675.0,0.372019]
[1649124687185,0.0011,46676.0,46675.0,0.05]
[1649124687286,0.0011,46676.0,46675.0,0.372019]
[1649124687385,0.0011,46676.0,46675.0,0.05]
[1649124687788,0.0011,46676.0,46675.0,0.372019]
[1649124687885,0.0011,46676.0,46675.0,0.05]
[1649124688033,0.01181,46682.0,46675.0,0.05]
[1649124688034,0.22382299,46688.0,46677.0,0.0535596]
[1649124688130,0.250567,46687.0,46677.0,0.0535596]
[1649124688234,0.35224718,46693.0,46677.0,0.0535596]
[1649124688329,0.00054279,46678.0,46677.0,0.0535596]
[1649124689279,0.00217083,46685.0,46677.0,0.0535596]
[1649124689280,0.250567,46689.0,46677.0,0.0535596]
[1649124689380,0.250567,46689.0,46677.0,0.3535596]
[1649124689582,0.250567,46689.0,46677.0,0.0535596]
[1649124689679,0.06425828,46687.0,46677.0,0.0535596]
[1649124689779,0.06425828,46687.0,46677.0,0.0642696]
[1649124689882,0.250567,46686.0,46677.0,0.0642696]
[1649124689983,0.06425828,46687.0,46677.0,0.0642696]
[1649124690081,0.250567,46686.0,46677.0,0.0535596]
[1649124690182,0.01071,46685.0,46677.0,0.0535596]
[1649124690286,0.01071,46686.0,46677.0,0.0535596]
[1649124690392,0.06425828,46687.0,46677.0,0.0535596]
[1649124690484,0.01071,46686.0,46677.0,0.0535596]
[1649124691186,0.250567,46685.0,46677.0,0.0535596]
[1649124691286,0.01071,46686.0,46677.0,0.0535596]
[1649124691388,0.250567,46685.0,46677.0,0.0535596]
[1649124691540,0.06425828,46687.0,46677.0,0.0535596]
[1649124691638,0.01071,46686.0,46677.0,0.0535596]
[1649124691780,0.250567,46685.0,46677.0,0.0535596]
[1649124691881,0.01071,46686.0,46679.0,0.00061231]
[1649124691982,0.250567,46685.0,46679.0,0.00061231]
[1649124692078,0.250567,46685.0,46680.0,0.05356282]
[1649124693181,0.250567,46685.0,46680.0,0.05417512]
[1649124694134,0.250567,46685.0,46680.0,0.05356282]
[1649124694232,0.250567,46685.0,46680.0,0.05417512]
[1649124695286,0.250567,46685.0,46680.0,0.05356282]
[1649124695535,0.250567,46685.0,46680.0,0.05417512]
[1649124695634,0.0428,46684.0,46680.0,0.05417512]
[1649124695735,0.250567,46683.0,46680.0,0.05417512]
[1649124696036,0.0428,46682.0,46680.0,0.05417512]
[1649124696237,0.250567,46681.0,46680.0,0.05417512]
[1649124696542,0.250567,46681.0,46680.0,0.05356282]
[1649124696641,0.293367,46681.0,46680.0,0.05356282]
[1649124697241,0.0428,46681.0,46680.0,0.05356282]
[1649124697342,0.064281,46685.0,46680.0,0.05356282]
[1649124697442,0.250567,46681.0,46680.0,0.05356282]
[1649124697541,0.053571,46685.0,46680.0,0.05356282]
[1649124697641,0.250567,46684.0,46680.0,0.05356282]
[1649124699046,0.250567,46684.0,46680.0,0.05415574]
[1649124700085,0.250567,46684.0,46680.0,0.05356282]
[1649124700285,0.250567,46684.0,46680.0,0.05413594]
[1649124701238,0.250567,46684.0,46680.0,0.05356282]
[1649124701443,0.250567,46684.0,46680.0,0.05413594]
[1649124702390,0.245567,46684.0,46680.0,0.05413594]
[1649124702490,0.245567,46684.0,46680.0,0.05356282]
[1649124702742,0.245567,46684.0,46680.0,0.05413594]
[1649124703681,0.245567,46684.0,46680.0,0.05356282]
[1649124703883,0.245567,46684.0,46680.0,0.05413726]
[1649124704083,0.245567,46684.0,46682.0,0.27590667]
[1649124704387,0.245567,46684.0,46682.0,0.32590667]
[1649124704687,0.245567,46684.0,46682.0,0.05]
[1649124704836,0.245567,46684.0,46680.0,0.10356282]
[1649124705036,0.245567,46684.0,46681.0,0.00057443]
[1649124705838,0.245567,46684.0,46681.0,0.29470213]
[1649124705936,0.245567,46684.0,46681.0,0.00057443]
[1649124706036,0.245567,46684.0,46681.0,0.05]
[1649124706141,0.245567,46684.0,46680.0,0.05356282]
[1649124706239,0.245567,46684.0,46680.0,0.05413725]
[1649124706988,0.01071,46686.0,46680.0,0.05413725]
[1649124707085,0.06483263,46687.0,46680.0,0.05413725]
[1649124707185,0.245593,46686.0,46684.0,0.05355824]
[1649124707288,0.256303,46686.0,46684.0,0.05355824]
[1649124707386,0.256303,46686.0,46684.0,0.10355824]
[1649124708535,0.245593,46686.0,46684.0,0.10355824]
[1649124708835,0.256303,46686.0,46684.0,0.10355824]
[1649124709741,0.245593,46686.0,46684.0,0.10355824]
[1649124710093,0.256303,46686.0,46684.0,0.10355824]
[1649124711037,0.245593,46686.0,46684.0,0.10355824]
[1649124711294,0.256303,46686.0,46684.0,0.10355824]
[1649124712189,0.245593,46686.0,46684.0,0.10355824]
[1649124712391,0.256303,46686.0,46684.0,0.10355824]
[1649124712993,0.256303,46686.0,46684.0,0.05]
[1649124713343,0.245593,46686.0,46684.0,0.05]
[1649124713642,0.256303,46686.0,46684.0,0.05]
[1649124714142,0.256303,46686.0,46678.0,0.10711959]
[1649124714266,0.256303,46686.0,46680.0,0.26542497]
[1649124714362,0.245593,46686.0,46680.0,0.26542497]
[1649124714461,0.245593,46686.0,46680.0,0.31542497]
[1649124714564,0.245593,46686.0,46680.0,0.05]
[1649124714663,0.245593,46686.0,46681.0,0.00061271]
[1649124715665,0.245593,46686.0,46680.0,0.24043448]
[1649124715864,0.245593,46684.0,46680.0,0.05]
[1649124715963,0.245593,46684.0,46681.0,0.0006127]
[1649124716066,0.245593,46683.0,46681.0,0.0006127]
[1649124716164,0.245593,46686.0,46681.0,0.0006127]
[1649124716367,0.245593,46684.0,46681.0,0.0006127]
[1649124716865,0.245593,46684.0,46679.0,0.28106509]
[1649124717066,0.245593,46684.0,46680.0,0.00061271]
[1649124717266,0.01071,46686.0,46680.0,0.00061271]
[1649124717367,0.245593,46685.0,46680.0,0.00061271]
[1649124718081,0.245593,46685.0,46679.0,0.05]
[1649124718282,0.01071,46689.0,46680.0,0.00061271]
[1649124718389,0.00061262,46687.0,46680.0,0.00061271]
[1649124718484,0.01071,46686.0,46680.0,0.00061271]
[1649124718584,0.245593,46685.0,46680.0,0.00061271]
[1649124718786,0.01071,46686.0,46680.0,0.00061271]
[1649124718889,0.245593,46685.0,46680.0,0.00061271]
[1649124719236,0.53324993,46685.0,46680.0,0.00061271]
[1649124719336,0.53324993,46685.0,46679.0,0.05]
[1649124719537,0.53324993,46685.0,46680.0,0.00059472]
[1649124719836,0.01071,46686.0,46680.0,0.00059472]
[1649124719937,0.245593,46683.0,46680.0,0.00059472]
[1649124720037,0.245593,46682.0,46680.0,0.00059472]
[1649124720137,0.00059463,46687.0,46679.0,0.04202409]
[1649124720337,0.04558739,46690.0,46679.0,0.04202409]
[1649124720488,0.256303,46689.0,46679.0,0.04202409]
[1649124720887,0.28071621,46685.0,46679.0,0.04202409]
[1649124720990,0.01071,46689.0,46679.0,0.04202409]
[1649124721092,0.38464883,46688.0,46679.0,0.04202409]
[1649124721189,0.01071,46687.0,46679.0,0.04202409]
[1649124721445,0.245593,46686.0,46679.0,0.04202409]
[1649124721542,0.01071,46685.0,46679.0,0.04202409]
[1649124721790,0.245593,46684.0,46679.0,0.04202409]
[1649124722192,0.01071,46686.0,46679.0,0.04202409]
[1649124722296,0.245593,46685.0,46679.0,0.04202409]
[1649124722793,0.245593,46687.0,46679.0,0.04202409]
[1649124722943,0.245593,46685.0,46679.0,0.04202409]
[1649124723142,0.245593,46685.0,46680.0,0.00061272]
[1649124724096,0.245593,46685.0,46679.0,0.04202409]
[1649124724295,0.245593,46685.0,46680.0,0.00061271]
[1649124725490,0.245593,46685.0,46679.0,0.04202409]
[1649124725586,0.245593,46685.0,46680.0,0.00061271]
[1649124726487,0.245593,46685.0,46679.0,0.04202409]
[1649124726687,0.245593,46685.0,46680.0,0.00057612]
[1649124727740,0.245593,46685.0,46679.0,0.04202409]
[1649124727892,0.245593,46685.0,46680.0,0.00055789]
[1649124728091,0.01071,46686.0,46680.0,0.00055789]
[1649124728190,0.24999038,46687.0,46680.0,0.00055789]
[1649124728290,0.245593,46686.0,46680.0,0.00055789]
[1649124728493,0.299162,46686.0,46680.0,0.00055789]
[1649124728692,0.341962,46686.0,46680.0,0.00055789]
[1649124728890,0.341962,46686.0,46673.0,0.01071]
[1649124728991,0.13906271,46685.0,46675.0,0.39211593]
[1649124729096,0.245593,46684.0,46675.0,0.39211593]
[1649124729239,0.13906271,46685.0,46675.0,0.39211593]
[1649124729336,0.245593,46684.0,46675.0,0.39211593]
[1649124729537,0.13906271,46685.0,46675.0,0.39211593]
[1649124729638,0.245593,46684.0,46678.0,0.24884662]
[1649124729741,0.245593,46684.0,46678.0,0.29884662]
[1649124730390,0.245593,46684.0,46678.0,0.05]
[1649124730489,0.245593,46684.0,46675.0,0.39211593]
[1649124730590,0.245593,46685.0,46675.0,0.39211593]
[1649124731040,0.13905037,46684.0,46675.0,0.39211593]
[1649124731442,0.18185037,46684.0,46678.0,0.27750671]
[1649124731543,0.18185037,46684.0,46677.0,0.00057996]
[1649124731842,0.245593,46683.0,46677.0,0.00057996]
[1649124731942,0.053569,46686.0,46677.0,0.00057996]
[1649124732044,0.245593,46685.0,46677.0,0.00057996]
[1649124732541,0.245593,46685.0,46675.0,0.39211593]
[1649124732743,0.245593,46685.0,46679.0,0.00057995]
[1649124733691,0.245593,46685.0,46677.0,0.34899022]
[1649124733890,0.245593,46685.0,46680.0,0.00057851]
[1649124734243,0.288393,46685.0,46680.0,0.00057851]
[1649124734344,0.245593,46685.0,46680.0,0.00057851]
[1649124734945,0.245593,46685.0,46677.0,0.34899022]
[1649124735144,0.245593,46685.0,46680.0,0.00057851]
[1649124736144,0.245593,46685.0,46678.0,0.04856617]
[1649124736302,0.1401086,46686.0,46680.0,0.00056086]
[1649124736397,0.256303,46688.0,46680.0,0.00056086]
[1649124737087,0.13905171,46687.0,46680.0,0.00056086]
[1649124737188,0.245593,46686.0,46681.0,0.05356206]
[1649124737489,0.245593,46686.0,46681.0,0.05412304]
[1649124738539,0.245593,46686.0,46681.0,0.05356206]
[1649124738742,0.245593,46686.0,46681.0,0.05412304]
[1649124739690,0.245593,46686.0,46681.0,0.05356206]
[1649124739892,0.245593,46686.0,46681.0,0.05410292]
[1649124740937,0.245593,46686.0,46681.0,0.05356206]
[1649124741138,0.245593,46686.0,46681.0,0.0541035]
[1649124742091,0.245593,46686.0,46681.0,0.05356206]
[1649124742289,0.245593,46686.0,46681.0,0.0541035]
[1649124743295,0.245593,46686.0,46681.0,0.05356206]
[1649124743497,0.245593,46686.0,46681.0,0.05410439]
[1649124743899,0.13904745,46685.0,46681.0,0.05410439]
[1649124744000,0.245593,46684.0,46681.0,0.05410439]
[1649124744486,0.245593,46684.0,46681.0,0.05356206]
[1649124746338,0.245593,46688.0,46681.0,0.05356206]
[1649124746435,0.01071,46687.0,46681.0,0.05356206]
[1649124746638,0.01071,46688.0,46681.0,0.05356206]
[1649124746738,0.245593,46687.0,46681.0,0.05356206]
[1649124746937,0.18185128,46686.0,46681.0,0.05356206]
[1649124747041,0.245593,46685.0,46681.0,0.05356206]
[1649124747137,0.245593,46685.0,46681.0,0.00054285]
[1649124748086,0.245593,46685.0,46678.0,0.32183747]
[1649124748185,0.245593,46685.0,46678.0,0.37540317]
[1649124748287,0.245593,46685.0,46681.0,0.00054276]
[1649124749289,0.245593,46685.0,46678.0,0.37540317]
[1649124749543,0.245593,46685.0,46681.0,0.00054276]
[1649124749889,0.1401086,46686.0,46681.0,0.00054276]
[1649124750143,0.245593,46684.0,46681.0,0.05410403]
[1649124750292,0.64933358,46687.0,46681.0,0.05410403]
[1649124750390,0.3857016,46686.0,46681.0,0.05410403]
[1649124750491,0.3857016,46686.0,46681.0,0.05356127]
[1649124750595,0.245593,46686.0,46681.0,0.05356127]
[1649124750691,0.245593,46686.0,46681.0,0.05410404]
[1649124750791,0.3857016,46686.0,46681.0,0.05410404]
[1649124750995,0.245593,46686.0,46681.0,0.05410404]
[1649124751242,0.3857016,46686.0,46681.0,0.05410404]
[1649124751796,0.13906122,46685.0,46681.0,0.05356127]
[1649124751890,0.245593,46684.0,46681.0,0.05356127]
[1649124752146,0.245593,46684.0,46677.0,0.05]
[1649124752342,0.13906122,46685.0,46676.0,0.01071]
[1649124752542,0.13906122,46685.0,46675.0,0.39211593]
[1649124753146,0.13906122,46685.0,46677.0,0.30501085]
[1649124753344,0.245593,46684.0,46677.0,0.05]
[1649124753445,0.245593,46684.0,46675.0,0.39211593]
[1649124753545,0.13906122,46685.0,46675.0,0.39211593]
[1649124754350,0.13906122,46685.0,46678.0,0.0005797]
[1649124754448,0.28584464,46682.0,46678.0,0.0005797]
[1649124754550,0.13906122,46685.0,46678.0,0.0005797]
[1649124754551,0.245593,46683.0,46678.0,0.0005797]
[1649124754748,0.13906122,46685.0,46678.0,0.0005797]
[1649124754749,0.1401086,46685.0,46678.0,0.0005797]
[1649124754898,0.1508186,46685.0,46678.0,0.0005797]
[1649124754998,0.245593,46684.0,46678.0,0.0005797]
[1649124755299,0.245593,46684.0,46675.0,0.67323334]
[1649124755487,0.01071,46685.0,46675.0,0.67323334]
[1649124755588,0.245593,46683.0,46679.0,0.00059828]
[1649124756238,0.245593,46683.0,46679.0,0.0541632]
[1649124756338,0.27711029,46684.0,46679.0,0.0541632]
[1649124756438,0.245593,46683.0,46679.0,0.0541632]
[1649124756538,0.1508186,46685.0,46679.0,0.05356492]
[1649124756688,0.245593,46684.0,46679.0,0.05356492]
[1649124756788,0.245593,46684.0,46679.0,0.0541632]
[1649124757489,0.49994901,46684.0,46679.0,0.05409245]
[1649124757790,0.49994901,46684.0,46679.0,0.05349417]
[1649124757992,0.49994901,46684.0,46679.0,0.05409245]
[1649124758947,0.49994901,46684.0,46679.0,0.05349417]
[1649124759147,0.49994901,46684.0,46679.0,0.05404972]
[1649124759397,0.245593,46684.0,46679.0,0.05404972]
[1649124760098,0.245593,46684.0,46679.0,0.05349417]
[1649124760299,0.245593,46684.0,46679.0,0.05404972]
[1649124760500,0.48408414,46684.0,46679.0,0.05404972]
[1649124761297,0.48408414,46684.0,46679.0,0.05349417]
[1649124761498,0.48408414,46684.0,46679.0,0.05404972]
[1649124761597,0.245593,46684.0,46679.0,0.05404972]
[1649124762503,0.245593,46684.0,46679.0,0.05349417]
[1649124762702,0.54976845,46684.0,46679.0,0.0540338]
[1649124763046,0.245593,46684.0,46679.0,0.0540338]
[1649124763695,0.245593,46684.0,46679.0,0.05349417]
[1649124763896,0.245593,46684.0,46679.0,0.0540338]
[1649124764298,0.15026193,46686.0,46679.0,0.0540338]
[1649124764399,0.245593,46685.0,46679.0,0.0540338]
[1649124764802,0.245593,46684.0,46679.0,0.0540338]
[1649124764900,0.245593,46684.0,46679.0,0.05349417]
[1649124765101,0.245593,46685.0,46680.0,0.00053962]
[1649124765303,0.50065509,46685.0,46680.0,0.00053962]
[1649124765907,0.245593,46685.0,46680.0,0.00053962]
[1649124766004,0.245593,46684.0,46680.0,0.00053962]
[1649124766156,0.245593,46685.0,46679.0,0.05349417]
[1649124766304,0.15026193,46686.0,46680.0,0.00054081]
[1649124766404,0.245593,46685.0,46680.0,0.00054081]
[1649124766950,0.30394385,46684.0,46680.0,0.00054081]
[1649124767049,0.245593,46683.0,46680.0,0.00054081]
[1649124767353,0.245593,46683.0,46679.0,0.05349417]
[1649124767550,0.245593,46683.0,46679.0,0.05403499]
[1649124768557,0.245593,46683.0,46679.0,0.05349417]
[1649124768655,0.245593,46683.0,46679.0,0.04719417]
[1649124768755,0.245593,46683.0,46679.0,0.04773499]
[1649124769054,0.15026193,46686.0,46679.0,0.04773499]
[1649124769155,0.245593,46685.0,46679.0,0.04773499]
[1649124769706,0.245593,46685.0,46679.0,0.04719417]
[1649124769859,0.51522278,46685.0,46679.0,0.04719417]
[1649124769957,0.51522278,46685.0,46680.0,0.0005407]
[1649124770934,0.51522278,46685.0,46679.0,0.04719417]
[1649124771183,0.245593,46685.0,46680.0,0.00054069]
[1649124771285,0.15026193,46686.0,46680.0,0.30054069]
[1649124771396,0.15026193,46686.0,46682.0,0.321854]
[1649124771487,0.15026193,46686.0,46684.0,0.321854]
[1649124771488,0.13955193,46686.0,46684.0,0.321854]
[1649124771591,0.64933358,46687.0,46685.0,0.53260463]
[1649124771687,0.64933358,46687.0,46685.0,0.364654]
[1649124771786,0.64933358,46687.0,46686.0,0.35513216]
[1649124772184,0.64933358,46687.0,46686.0,0.40513216]
[1649124772290,0.64933358,46687.0,46686.0,0.64678976]
[1649124773086,0.64933358,46687.0,46686.0,1.96370633]
[1649124774137,0.64933358,46687.0,46686.0,1.64185233]
[1649124774345,0.64933358,46687.0,46686.0,1.96370633]
[1649124775050,0.64933358,46687.0,46686.0,1.64185233]
[1649124775146,0.64933358,46687.0,46686.0,1.96370633]
[1649124776900,0.64933358,46687.0,46686.0,1.64185233]
[1649124776999,0.64933358,46687.0,46686.0,1.96370633]
[1649124777100,0.64933358,46687.0,46686.0,1.64185233]
[1649124777200,0.64933358,46687.0,46686.0,1.96370633]
[1649124778243,0.64933358,46687.0,46686.0,1.64185233]
[1649124778646,0.64933358,46687.0,46686.0,1.96370633]
[1649124780147,0.64933358,46687.0,46686.0,1.95513809]
[1649124780245,0.64076445,46687.0,46686.0,1.95513809]
[1649124780896,0.64076445,46687.0,46686.0,1.63328409]
[1649124780997,0.64076445,46687.0,46686.0,1.95513809]
[1649124781097,0.64076445,46687.0,46686.0,1.63328409]
[1649124781198,0.64076445,46687.0,46686.0,1.95513809]
[1649124787647,0.32537205,46687.0,46686.0,1.95513809]
[1649124787752,0.32537205,46687.0,46686.0,2.00513809]
[1649124787849,0.004,46694.0,46688.0,0.10707218]
[1649124787949,0.004,46694.0,46689.0,0.353536]
[1649124788249,0.004,46694.0,46689.0,0.403536]
[1649124788648,0.004,46694.0,46690.0,0.26668637]
[1649124789244,0.0042064,46694.0,46693.0,0.3]
[1649124789445,0.0042064,46694.0,46693.0,0.621854]
[1649124789543,0.0042064,46694.0,46693.0,0.3]
[1649124789996,0.0042064,46694.0,46693.0,0.621854]
[1649124790194,0.004,46694.0,46693.0,0.621854]
[1649124790346,0.004,46694.0,46693.0,0.31083233]
[1649124790444,0.004,46694.0,46693.0,0.63268633]
[1649124791150,0.004,46694.0,46693.0,0.31083233]
[1649124791397,0.002,46694.0,46693.0,0.67548633]
[1649124791496,0.002,46695.0,46693.0,0.45363233]
[1649124791597,0.002,46695.0,46694.0,0.63268633]
[1649124791798,0.002,46695.0,46694.0,0.73268633]
[1649124792098,0.0051,46698.0,46695.0,1.25]
[1649124792201,0.0051,46698.0,46697.0,0.01083233]
[1649124792298,0.0051,46698.0,46697.0,0.52737524]
[1649124792993,0.0051,46698.0,46697.0,0.82737524]
[1649124793240,0.0051,46698.0,46697.0,0.31083233]
[1649124793342,0.0051,46698.0,46697.0,0.01083233]
[1649124793442,0.0051,46698.0,46696.0,2.04172511]
[1649124793541,0.0051,46698.0,46696.0,0.24031232]
[1649124793694,0.0051,46698.0,46696.0,0.05352178]
[1649124794394,0.0051,46698.0,46697.0,0.321854]
[1649124794491,0.0051,46698.0,46696.0,0.05352178]
[1649124796195,0.0051,46698.0,46697.0,0.321854]
[1649124796295,0.0051,46698.0,46696.0,0.05352178]
[1649124796940,0.0051,46698.0,46697.0,0.321854]
[1649124797039,0.0051,46698.0,46696.0,0.05352178]
[1649124800489,0.0051,46698.0,46697.0,0.27076313]
[1649124802342,0.0051,46698.0,46696.0,0.05352178]
[1649124803446,0.0051,46698.0,46697.0,0.28576867]
[1649124805711,0.01381,46703.0,46697.0,0.28576867]
[1649124805813,0.00032812,46706.0,46698.0,1.28326868]
[1649124806011,0.00057234,46700.0,46698.0,1.28326868]
[1649124806114,0.00057234,46700.0,46698.0,1.3057222]
[1649124806312,0.00057234,46700.0,46698.0,1.30543894]
[1649124807015,0.00032812,46705.0,46698.0,1.30543894]
[1649124807115,0.00032812,46705.0,46698.0,1.35897094]
[1649124807215,0.00023889,46702.0,46698.0,1.35897094]
[1649124807717,0.00023889,46702.0,46699.0,0.05353239]
[1649124808188,0.00032812,46705.0,46699.0,0.05353239]
[1649124808386,0.00057331,46703.0,46699.0,0.05353239]
[1649124809387,0.00032812,46705.0,46699.0,0.05353239]
[1649124809637,0.0005733,46703.0,46699.0,0.05353239]
[1649124810338,0.0005733,46703.0,46699.0,0.35353239]
[1649124810441,0.0005733,46703.0,46701.0,1.34250217]
[1649124810541,0.00032812,46705.0,46701.0,1.37576729]
[1649124810890,0.0005733,46703.0,46701.0,1.37576729]
[1649124811192,0.0005733,46703.0,46701.0,1.4828248]
[1649124811741,0.00032812,46705.0,46701.0,1.4828248]
[1649124811840,0.00032812,46705.0,46701.0,1.5363528]
[1649124811991,0.00057322,46704.0,46701.0,1.5363528]
[1649124812190,0.00057322,46704.0,46701.0,0.16058551]
[1649124812992,0.00032812,46705.0,46701.0,0.16058551]
[1649124813208,0.00090133,46705.0,46701.0,0.16058551]
[1649124814144,0.00032812,46705.0,46701.0,0.16058551]
[1649124814449,0.00090133,46705.0,46702.0,0.10705768]
[1649124814697,0.00090133,46705.0,46702.0,0.16058627]
[1649124815395,0.00032812,46705.0,46702.0,0.16058627]
[1649124815721,0.01003558,46709.0,46702.0,0.16058627]
[1649124816572,0.245593,46708.0,46702.0,0.16058627]
[1649124816670,0.01003558,46709.0,46702.0,0.16058627]
[1649124818074,0.00023846,46708.0,46702.0,0.16058627]
[1649124818379,0.0008947,46708.0,46702.0,0.16058627]
[1649124818627,0.00158652,46709.0,46702.0,0.16058627]
[1649124820402,0.00158652,46709.0,46706.0,0.21953901]
[1649124820503,0.245593,46708.0,46706.0,0.21953901]
[1649124820602,0.00158652,46709.0,46702.0,0.16058627]
[1649124821206,0.245593,46710.0,46702.0,0.16058627]
[1649124821310,0.00724145,46712.0,46702.0,0.16058627]
[1649124821412,0.245593,46711.0,46702.0,0.16058627]
[1649124821506,0.00724145,46712.0,46702.0,0.16058627]
[1649124821856,0.245593,46710.0,46702.0,0.16058627]
[1649124821956,0.13914648,46711.0,46702.0,0.16058627]
[1649124822807,0.00061222,46710.0,46702.0,0.1611986]
[1649124823795,0.00724145,46712.0,46702.0,0.16058627]
[1649124823994,0.00061222,46710.0,46702.0,0.1611986]
[1649124824194,0.00061222,46710.0,46707.0,0.24915879]
[1649124824394,0.00061222,46710.0,46707.0,0.30268587]
[1649124824595,0.245593,46709.0,46707.0,0.05352708]
[1649124824696,0.00061222,46710.0,46707.0,0.05352708]
[1649124824946,0.245593,46709.0,46707.0,0.05352708]
[1649124825047,0.00724145,46712.0,46707.0,0.05352708]
[1649124825148,0.245593,46711.0,46707.0,0.05352708]
[1649124825248,0.24620522,46711.0,46707.0,0.05352708]
[1649124826148,0.245593,46711.0,46707.0,0.05352708]
[1649124826498,0.24620522,46711.0,46707.0,0.05352708]
[1649124826758,0.13914698,46710.0,46707.0,0.05352708]
[1649124827157,0.245593,46709.0,46707.0,0.05352708]
[1649124827359,0.245593,46708.0,46707.0,0.05352708]
[1649124827465,0.13914698,46710.0,46707.0,0.05352708]
[1649124827560,0.13914698,46710.0,46707.0,0.10352708]
[1649124827659,0.00059363,46710.0,46707.0,0.10352708]
[1649124828614,0.00724145,46712.0,46707.0,0.10352708]
[1649124828709,0.00724145,46712.0,46708.0,0.053523]
[1649124828809,0.24618663,46711.0,46708.0,0.053523]
[1649124828910,0.00059363,46711.0,46708.0,0.053523]
[1649124829159,0.00059363,46711.0,46707.0,0.05352708]
[1649124829810,0.245593,46711.0,46707.0,0.05352708]
[1649124830009,0.00059362,46711.0,46707.0,0.05352708]
[1649124830557,0.00018362,46711.0,46707.0,0.05352708]
[1649124830951,0.00724145,46712.0,46707.0,0.05352708]
[1649124831302,0.245593,46711.0,46707.0,0.05352708]
[1649124831403,0.00724145,46712.0,46707.0,0.05352708]
[1649124831503,0.245593,46711.0,46707.0,0.05352708]
[1649124831603,0.00724145,46712.0,46707.0,0.05352708]
[1649124831952,0.245593,46711.0,46707.0,0.05352708]
[1649124832252,0.00724145,46712.0,46707.0,0.05352708]
[1649124832355,0.245593,46711.0,46707.0,0.05352708]
[1649124832604,0.00724145,46712.0,46707.0,0.05352708]
[1649124834744,0.0279684,46713.0,46707.0,0.05352708]
[1649124834852,0.0006122,46713.0,46707.0,1.30242708]